bitfinex/quotes_ETHUSD_20210401
["timestamp","ask_amount","ask_price","bid_price","bid_amount"]
[1617282313979,0.9681948,1926.7,1926.6,5.57947388]
[1617282315081,8.9681948,1926.7,1926.6,5.57947388]
[1617282315308,9.8201948,1926.7,1926.6,5.57947388]
[1617282315708,1.8201948,1926.7,1926.6,5.57947388]
[1617282316406,0.9681948,1926.7,1926.6,5.57947388]
[1617282316707,0.9181948,1926.7,1926.6,5.97947388]
[1617282319531,1.01553709,1926.8,1926.6,5.57947388]
[1617282321177,7.78682,1926.7,1926.6,5.57947388]
[1617282321380,16.1878148,1926.7,1926.6,5.57947388]
[1617282321979,16.1878148,1926.7,1926.6,5.97947388]
[1617282322181,8.4009948,1926.7,1926.6,5.97947388]
[1617282322682,1.01553709,1926.8,1926.6,5.97947388]
[1617282325484,15.57321,1926.9,1926.7,10.3]
[1617282326317,7.78649,1926.8,1926.7,10.3]
[1617282327417,7.78649,1926.8,1926.7,0.50334402]
[1617282327910,7.78709,1926.9,1926.7,0.90334402]
[1617282328210,7.78709,1926.9,1926.8,0.38]
[1617282329228,15.57311,1926.9,1926.8,0.38]
[1617282330033,15.57311,1926.9,1926.8,6.43]
[1617282330429,14.57311,1926.9,1926.8,6.43]
[1617282330953,6.78709,1926.9,1926.8,6.43]
[1617282331653,6.78709,1926.9,1926.8,6.93334402]
[1617282331859,2.5955552,1927.3,1926.8,8.13334402]
[1617282332156,15.5737024,1927.7,1926.9,0.42]
[1617282332358,15.6997024,1927.7,1927.3,0.39]
[1617282332560,15.6997024,1927.7,1927.4,0.343]
[1617282332956,3.89209,1927.5,1927.4,0.343]
[1617282333156,11.67602,1927.5,1927.4,0.343]
[1617282334686,11.67602,1927.5,1927.0,7.82611369]
[1617282334886,3.89209,1927.5,1927.4,0.50334402]
[1617282335093,3.89209,1927.5,1927.4,0.90334402]
[1617282335388,14.78357,1927.8,1927.5,0.41]
[1617282335585,6.78357,1927.8,1927.5,0.704]
[1617282335786,0.0595599,1927.8,1927.6,0.38]
[1617282336828,0.0595599,1927.8,1927.6,5.39]
[1617282337027,0.0595599,1927.8,1927.7,0.10714716]
[1617282337228,0.0595599,1927.8,1927.7,0.49714716]
[1617282337829,3.89128,1928.0,1927.7,0.49714716]
[1617282338028,3.89128,1928.0,1927.9,0.4]
[1617282338429,3.89128,1928.0,1927.7,0.61049118]
[1617282338628,3.89128,1928.0,1927.7,1.28049118]
[1617282339140,3.89128,1928.0,1927.9,0.4]
[1617282339340,22.65485685,1928.8,1928.0,2.4791555]
[1617282339536,22.65485685,1928.8,1928.3,9.36]
[1617282339537,3.535,1928.7,1928.3,9.36]
[1617282339838,3.535,1928.7,1928.3,19.1391555]
[1617282340139,1.0,1928.9,1928.3,14.7391555]
[1617282340336,1.0,1928.9,1928.3,12.26]
[1617282340636,1.0,1928.9,1928.4,6.3]
[1617282340836,1.126,1928.9,1928.4,6.692]
[1617282341039,1.126,1928.9,1928.5,0.38]
[1617282341339,1.126,1928.9,1928.6,0.308]
[1617282341340,2.0,1928.8,1928.6,0.308]
[1617282341959,2.0,1928.8,1928.7,0.17384534]
[1617282342159,2.0,1928.8,1928.7,18.11718936]
[1617282342361,2.0,1928.8,1928.7,1.06718936]
[1617282342564,0.0001,1928.9,1928.8,28.35]
[1617282342865,11.31306,1929.3,1928.9,24.1]
[1617282343065,11.31306,1929.3,1929.0,2.4819461]
[1617282343066,3.535,1929.3,1929.0,2.4819461]
[1617282343262,3.535,1929.3,1928.9,24.52]
[1617282343662,3.535,1929.3,1929.2,0.39]
[1617282343865,3.535,1929.3,1928.9,0.42]
[1617282344107,3.535,1929.3,1929.0,0.39]
[1617282344310,6.9629793,1929.4,1929.0,0.39]
[1617282344507,4.88883,1929.4,1929.0,0.39]
[1617282344708,4.88883,1929.4,1928.9,0.42]
[1617282344709,4.88883,1929.4,1929.2,0.41]
[1617282345110,4.88883,1929.4,1928.8,2.47954238]
[1617282345307,4.88883,1929.4,1929.0,0.4]
[1617282345611,2.98,1929.3,1928.9,1.36934402]
[1617282345909,1.98,1929.3,1929.0,2.46657622]
[1617282346107,2.0,1929.2,1929.1,0.4]
[1617282346308,3.88883,1929.4,1929.2,0.4]
[1617282346309,2.0,1929.3,1929.2,0.4]
[1617282346507,3.88883,1929.4,1929.1,0.624]
[1617282346508,1.5,1929.2,1929.1,0.624]
[1617282346709,1.5,1929.2,1929.1,0.224]
[1617282347009,1.5,1929.2,1929.1,0.32980653]
[1617282348314,0.0001,1929.2,1929.1,12.22980653]
[1617282348512,3.83883,1929.4,1929.1,12.22980653]
[1617282348715,3.83883,1929.4,1929.3,1.0]
[1617282350356,2.83883,1929.4,1929.3,1.0]
[1617282350960,1.0,1929.4,1929.3,1.0]
[1617282352863,1.0,1929.4,1929.3,12.2]
[1617282353162,1.0,1929.4,1929.3,1.0]
[1617282353366,0.86190192,1929.4,1929.3,1.0]
[1617282353564,0.86190192,1929.4,1929.3,14.98]
[1617282353763,0.86190192,1929.4,1929.3,15.48334402]
[1617282354163,0.86190192,1929.4,1929.3,1.50334402]
[1617282354683,0.86190192,1929.4,1929.3,8.15334402]
[1617282355486,15.7153503,1930.0,1929.5,28.35]
[1617282355487,13.123001,1930.0,1929.5,28.35]
[1617282355688,13.123001,1930.0,1929.9,17.3]
[1617282355689,0.158161,1930.0,1929.9,17.3]
[1617282355989,0.158161,1930.0,1929.9,17.58]
[1617282356687,0.158161,1930.0,1929.6,16.19932806]
[1617282356887,0.158161,1930.0,1929.8,0.39]
[1617282357088,0.158161,1930.0,1929.9,10.40217751]
[1617282357709,0.158161,1930.0,1929.9,0.65552153]
[1617282360137,20.6456947,1930.5,1930.0,31.61790516]
[1617282360138,0.35043195,1930.5,1930.0,31.61790516]
[1617282360438,9.09272422,1930.8,1930.3,23.5]
[1617282360639,1.26995422,1930.8,1930.7,0.4]
[1617282361036,1.26995422,1930.8,1930.4,0.09406894]
[1617282361241,1.26995422,1930.8,1930.5,0.39]
[1617282361438,1.26995422,1930.8,1930.5,0.28]
[1617282361639,1.29907382,1930.8,1930.6,0.38]
[1617282361940,1.29907382,1930.8,1930.2,0.09406894]
[1617282362139,1.29907382,1930.8,1930.7,0.18420926]
[1617282362140,9.07166382,1930.8,1930.7,0.18420926]
[1617282362769,9.46166382,1930.8,1930.7,0.18420926]
[1617282362971,11.21991593,1930.8,1930.7,0.18420926]
[1617282363372,9.46166382,1930.8,1930.7,0.18420926]
[1617282363674,21.41166382,1930.8,1930.7,0.18420926]
[1617282363873,9.46166382,1930.8,1930.7,0.18420926]
[1617282364573,9.46166382,1930.8,1930.7,0.68755328]
[1617282365302,9.46166382,1930.8,1930.2,0.38]
[1617282365503,8.46166382,1930.8,1930.3,0.49]
[1617282365809,0.4,1930.7,1930.3,0.49]
[1617282366904,0.05947053,1930.7,1930.3,0.88]
[1617282367203,7.83265053,1930.7,1930.6,0.13127295]
[1617282368012,9.11455053,1930.7,1930.6,0.13127295]
[1617282368208,0.41,1930.2,1929.9,11.2096]
[1617282368512,9.0345,1930.2,1929.9,10.29579458]
[1617282368709,0.4,1930.0,1929.6,2.64675276]
[1617282368911,0.4,1930.0,1929.8,0.364]
[1617282369114,0.41,1929.9,1929.6,4.75406894]
[1617282369312,0.41,1929.9,1929.6,4.66]
[1617282369516,1.53279678,1930.0,1929.6,4.66]
[1617282369710,0.4,1929.9,1929.5,13.7303]
[1617282370532,5.25337,1930.1,1929.6,0.41]
[1617282370732,2.0,1930.0,1929.6,0.41]
[1617282370934,2.0,1929.8,1929.6,0.69]
[1617282371135,7.6829,1929.8,1929.6,0.69]
[1617282371332,7.6329,1929.8,1929.6,0.69]
[1617282371538,0.95,1929.6,1929.3,1.4]
[1617282371737,4.13,1929.6,1929.3,1.4]
[1617282372136,9.0,1929.4,1929.3,1.4]
[1617282372535,17.5797,1929.4,1929.3,1.4]
[1617282372738,9.30488956,1929.4,1929.3,1.4]
[1617282373360,9.30488956,1929.4,1929.3,1.0]
[1617282374662,9.30488956,1929.4,1929.3,1.39]
[1617282375163,0.05950242,1929.6,1929.4,14.2]
[1617282375366,0.05950242,1929.6,1929.5,2.96970584]
[1617282376086,10.36647,1930.2,1929.8,14.8]
[1617282376286,10.36647,1930.2,1930.1,9.19]
[1617282376486,9.36647,1930.2,1930.1,9.19]
[1617282376689,9.36647,1930.2,1930.1,14.60681454]
[1617282376889,7.77246,1930.3,1930.1,14.60681454]
[1617282377187,12.95895,1930.6,1930.2,26.29]
[1617282377387,12.95895,1930.6,1930.4,2.57681454]
[1617282377886,12.95895,1930.6,1930.3,5.69]
[1617282378207,7.7718,1930.5,1930.3,0.81]
[1617282378607,7.7718,1930.5,1930.4,2.57681454]
[1617282379307,7.7718,1930.5,1930.2,2.57681454]
[1617282379612,7.7718,1930.5,1930.1,4.65421454]
[1617282379910,7.7718,1930.5,1930.3,2.58810222]
[1617282380709,6.7718,1930.5,1930.3,2.58810222]
[1617282380955,4.8019,1930.5,1930.4,7.0]
[1617282381255,4.8019,1930.5,1930.3,2.58810222]
[1617282381455,12.95895,1930.6,1930.4,5.99]
[1617282382058,7.7718,1930.5,1930.4,0.39]
[1617282382365,2.83665,1930.6,1930.4,0.39]
[1617282382655,2.83665,1930.6,1930.5,0.19238451]
[1617282382854,2.83665,1930.6,1930.5,0.59238451]
[1617282383455,2.83665,1930.6,1930.5,8.14238451]
[1617282383856,3.8863,1930.7,1930.5,8.14238451]
[1617282384661,0.29907382,1930.8,1930.6,0.39]
[1617282385359,2.0,1930.7,1930.5,5.08730222]
[1617282385758,2.0,1930.7,1930.4,0.28]
[1617282385958,2.38,1930.7,1930.4,0.28]
[1617282386186,2.38,1930.7,1930.2,4.23773136]
[1617282386382,1.0,1930.7,1930.2,8.19773136]
[1617282386687,0.28977382,1930.8,1930.6,0.4]
[1617282386886,0.28977382,1930.8,1930.7,0.41]
[1617282386887,8.06124382,1930.8,1930.7,0.41]
[1617282387388,8.06124382,1930.8,1930.7,6.66]
[1617282387583,8.06124382,1930.8,1930.7,1.41]
[1617282387785,8.06124382,1930.8,1930.7,1.0]
[1617282388188,0.28977382,1930.8,1930.7,1.0]
[1617282389412,4.88567,1930.9,1930.8,0.71022618]
[1617282390217,12.65663,1930.9,1930.8,0.71022618]
[1617282391015,12.65663,1930.9,1930.8,15.85022618]
[1617282391218,12.65663,1930.9,1930.8,19.97022618]
[1617282391441,0.00600896,1930.9,1930.8,18.77022618]
[1617282391941,16.58099792,1931.3,1930.8,17.67]
[1617282392143,12.0,1930.9,1930.8,12.57022618]
[1617282392343,12.0,1930.9,1930.8,12.97022618]
[1617282392740,12.0,1930.9,1930.8,11.77022618]
[1617282393243,12.0,1930.9,1930.8,11.37022618]
[1617282393244,11.95,1930.9,1930.8,11.37022618]
[1617282393441,11.95,1930.9,1930.8,12.57022618]
[1617282393642,11.95,1930.9,1930.8,11.37022618]
[1617282394057,11.95,1930.9,1930.8,11.75022618]
[1617282394262,11.95,1930.9,1930.8,17.96022618]
[1617282394558,11.95,1930.9,1930.8,16.76022618]
[1617282394758,11.95,1930.9,1930.8,11.37022618]
[1617282395257,11.95,1930.9,1930.8,12.57022618]
[1617282395459,11.95,1930.9,1930.8,10.37022618]
[1617282395658,11.95,1930.9,1930.8,13.03809582]
[1617282395863,11.95,1930.9,1930.8,20.03809582]
[1617282396060,11.95,1930.9,1930.8,35.47510069]
[1617282396261,11.95,1930.9,1930.8,26.64809582]
[1617282396460,11.95,1930.9,1930.8,67.07510069]
[1617282396461,10.95,1930.9,1930.8,67.07510069]
[1617282397011,12.95,1930.9,1930.8,67.07510069]
[1617282397716,12.95,1930.9,1930.8,68.03618864]
[1617282398809,2.95,1930.9,1930.8,68.03618864]
[1617282400420,2.95,1930.9,1930.8,71.03618864]
[1617282400618,2.95,1930.9,1930.8,87.54144776]
[1617282400818,2.95,1930.9,1930.8,79.54144776]
[1617282401020,1.0,1931.4,1930.9,11.59932806]
[1617282401223,1.0,1931.4,1931.3,31.43371954]
[1617282401422,1.0,1931.4,1931.3,62.63371954]
[1617282401620,1.0,1931.4,1931.3,67.33371954]
[1617282401840,2.0747152,1931.7,1931.6,22.1902596]
[1617282402041,2.0747152,1931.7,1931.6,7.7002596]
[1617282402245,2.0747152,1931.7,1931.6,16.68525912]
[1617282402440,2.0747152,1931.7,1931.6,5.18]
[1617282402642,2.0747152,1931.7,1931.6,6.21]
[1617282402844,2.0747152,1931.7,1931.6,20.40120908]
[1617282403042,2.0747152,1931.7,1931.6,8.89594996]
[1617282403341,2.0747152,1931.7,1931.6,11.39594996]
[1617282403539,2.0747152,1931.7,1931.6,9.91]
[1617282403750,2.0747152,1931.7,1931.6,19.86]
[1617282403941,2.0747152,1931.7,1931.6,30.28700487]
[1617282404140,2.0747152,1931.7,1931.6,19.86]
[1617282404463,2.0747152,1931.7,1931.6,19.51700487]
[1617282404664,2.0747152,1931.7,1931.6,10.05108795]
[1617282404866,2.0747152,1931.7,1931.6,5.04108795]
[1617282405268,2.0247152,1931.7,1931.6,0.96108795]
[1617282405667,2.0247152,1931.7,1931.4,10.42700487]
[1617282405876,2.0247152,1931.7,1931.3,2.96594996]
[1617282406067,2.0247152,1931.7,1931.4,3.28]
[1617282406267,2.0247152,1931.7,1931.3,0.37406894]
[1617282406466,1.0247152,1931.7,1931.3,11.87932806]
[1617282406669,1.0247152,1931.7,1931.3,0.37406894]
[1617282406870,0.0247152,1931.7,1931.3,0.37406894]
[1617282407089,0.0247152,1931.7,1931.3,8.14013894]
[1617282407290,0.0247152,1931.7,1931.3,13.36013894]
[1617282407490,0.0247152,1931.7,1931.6,0.16847567]
[1617282408106,0.0247152,1931.7,1931.6,19.87847567]
[1617282408300,0.0247152,1931.7,1931.6,32.98460518]
[1617282408599,0.0247152,1931.7,1931.6,31.58868826]
[1617282408802,0.0247152,1931.7,1931.6,42.01569313]
[1617282409813,0.0247152,1931.7,1931.6,53.52095225]
[1617282410313,0.0247152,1931.7,1931.6,38.82095225]
[1617282410516,0.0247152,1931.7,1931.6,37.23095225]
[1617282410718,0.0247152,1931.7,1931.6,1.12956362]
[1617282410719,0.4247152,1931.7,1931.6,1.12956362]
[1617282411313,2.4247152,1931.7,1931.6,1.12956362]
[1617282411512,1.4247152,1931.7,1931.6,0.16847567]
[1617282412015,1.4247152,1931.7,1931.6,6.26847567]
[1617282412767,1.4247152,1931.7,1931.6,8.67987356]
[1617282413068,1.2148,1931.8,1931.7,26.51373]
[1617282413069,1.4247152,1931.8,1931.7,26.51373]
[1617282413371,1.0,1931.9,1931.8,25.77700487]
[1617282413569,1.0,1931.9,1931.8,22.28]
[1617282413767,1.0,1931.9,1931.8,32.70700487]
[1617282414070,1.0,1931.9,1931.8,32.31700487]
[1617282414270,1.0,1931.9,1931.8,21.89]
[1617282414870,0.9,1931.9,1931.8,23.47]
[1617282415074,0.9,1931.9,1931.8,63.89700487]
[1617282415471,0.9,1931.9,1931.8,63.51700487]
[1617282415671,0.9,1931.9,1931.8,34.47809282]
[1617282415875,0.9,1931.9,1931.8,41.47809282]
[1617282416272,0.9,1931.9,1931.8,53.37335194]
[1617282416475,0.69111768,1932.4,1931.9,28.35]
[1617282416680,0.69111768,1932.4,1932.3,25.71976471]
[1617282416876,0.69111768,1932.4,1932.3,34.45]
[1617282417081,0.69111768,1932.4,1932.3,5.4]
[1617282417599,0.69111768,1932.4,1932.3,10.58572718]
[1617282418000,0.69111768,1932.4,1932.3,18.47572718]
[1617282418200,0.69111768,1932.4,1932.3,19.67572718]
[1617282418404,0.35662585,1932.4,1932.3,34.30273205]
[1617282418802,0.35662585,1932.4,1932.3,47.03375628]
[1617282419000,0.35662585,1932.4,1932.3,37.94375628]
[1617282419203,0.35662585,1932.4,1932.3,33.43849716]
[1617282420224,0.35662585,1932.4,1932.3,32.21273205]
[1617282420423,0.30662585,1932.4,1932.3,32.62273205]
[1617282420624,0.30662585,1932.4,1932.3,32.21273205]
[1617282420825,0.30662585,1932.4,1932.3,63.41273205]
[1617282421327,1.0,1932.9,1932.3,65.01849716]
[1617282421629,0.02,1933.0,1932.8,0.41]
[1617282421934,0.02,1933.0,1932.9,21.10436052]
[1617282422127,0.02,1933.0,1932.9,36.7771305]
[1617282422425,0.02,1933.0,1932.9,46.05639863]
[1617282422627,0.02,1933.0,1932.9,65.62939376]
[1617282422835,7.75952,1933.5,1933.0,20.15]
[1617282422836,6.66903249,1933.5,1933.0,20.15]
[1617282423037,6.66903249,1933.5,1933.1,2.13687092]
[1617282423337,6.66903249,1933.5,1933.2,7.0]
[1617282423338,2.0,1933.4,1933.2,7.0]
[1617282423741,2.0,1933.6,1933.2,7.0]
[1617282423940,2.0,1933.6,1933.2,7.28]
[1617282424340,2.41,1933.6,1933.3,2.13685461]
[1617282424542,2.0,1933.6,1933.3,2.23092355]
[1617282424742,2.0,1933.6,1933.3,2.13685461]
[1617282424941,13.01,1934.6,1933.4,27.6]
[1617282425148,2.0,1933.5,1933.4,26.81407381]
[1617282425495,2.0,1933.5,1933.4,23.25876511]
[1617282425696,2.0,1933.5,1933.4,30.67348511]
[1617282426393,2.0,1933.5,1933.4,37.67348511]
[1617282426597,20.5744785,1934.7,1933.5,20.2]
[1617282426796,0.14,1934.2,1933.9,0.4]
[1617282426998,0.14,1934.6,1933.8,0.744]
[1617282427197,0.41,1934.5,1933.6,5.40855403]
[1617282427395,0.41,1934.2,1933.7,5.01]
[1617282427595,1.05406894,1934.9,1933.8,20.94001011]
[1617282427802,0.38,1934.3,1933.8,33.29874541]
[1617282427994,7.79901,1934.7,1933.9,0.4]
[1617282428203,7.79901,1934.7,1934.0,0.39]
[1617282428799,7.79901,1934.7,1934.0,5.4]
[1617282428998,0.38,1934.5,1933.9,3.38685306]
[1617282429198,0.38,1934.5,1933.9,8.24685306]
[1617282429399,0.38,1934.4,1933.9,10.98164376]
[1617282429700,7.75751,1934.6,1934.1,5.01]
[1617282429701,8.15751,1934.6,1934.1,5.01]
[1617282429900,0.4,1934.6,1934.0,3.64]
[1617282430099,0.4,1934.6,1934.0,9.85]
[1617282430314,0.4,1934.6,1934.1,5.01]
[1617282430600,0.4,1934.6,1934.1,5.4]
[1617282430826,0.042,1934.7,1934.1,6.6]
[1617282431021,0.422,1934.7,1934.1,1.59]
[1617282431222,0.422,1934.7,1934.1,5.4]
[1617282431426,0.38,1934.5,1933.9,8.71713795]
[1617282431725,0.38,1934.5,1934.0,7.0]
[1617282432127,0.38,1934.5,1934.0,6.08802535]
[1617282432527,7.75636,1934.8,1934.1,6.9]
[1617282432528,0.14,1934.6,1934.1,6.9]
[1617282432728,0.40627072,1934.4,1934.1,6.9]
[1617282433478,0.00627072,1934.4,1934.1,7.31]
[1617282433676,0.00627072,1934.4,1934.1,11.93576511]
[1617282434081,0.14,1934.6,1934.1,11.93576511]
[1617282434082,0.10881216,1934.6,1934.2,24.46084208]
[1617282434280,0.96,1934.9,1934.4,0.39]
[1617282435380,1.35,1934.9,1934.2,5.96]
[1617282435681,1.35,1934.9,1934.2,10.72660719]
[1617282435884,0.41,1934.7,1934.2,6.71576511]
[1617282436480,0.41,1934.7,1934.2,7.91576511]
[1617282436880,2.0,1934.6,1934.2,5.49]
[1617282437480,1.0,1934.6,1934.4,0.39]
[1617282437885,1.0,1934.5,1934.2,9.3813361]
[1617282438080,1.0,1934.5,1934.2,10.99365315]
[1617282438697,1.0,1934.5,1934.2,8.30576511]
[1617282439097,1.0,1934.5,1934.2,7.08]
[1617282439300,1.0,1934.5,1934.2,14.83451]
[1617282439497,1.0,1934.5,1934.2,25.26151487]
[1617282439698,1.06972011,1934.5,1934.4,10.24]
[1617282439899,1.06972011,1934.5,1934.4,0.39]
[1617282440199,1.06972011,1934.5,1934.3,2.68788804]
[1617282440404,1.06972011,1934.5,1934.3,6.86788804]
[1617282440599,1.06972011,1934.5,1934.3,4.18]
[1617282440802,0.06972011,1934.5,1934.2,8.98027511]
[1617282441000,1.0,1934.4,1934.2,12.05816315]
[1617282441239,1.0,1934.4,1934.2,11.66816315]
[1617282441442,1.0,1934.4,1934.3,31.92700487]
[1617282441642,1.0,1934.4,1934.3,39.87276998]
[1617282442041,1.0,1934.4,1934.3,41.34240351]
[1617282442442,1.0,1934.4,1934.3,39.87276998]
[1617282442742,0.06972011,1934.5,1934.4,14.88]
[1617282443042,0.06972011,1934.5,1934.4,16.23405172]
[1617282443741,0.06972011,1934.5,1934.4,15.00828661]
[1617282444747,0.06972011,1934.5,1934.4,25.57624435]
[1617282445051,0.06972011,1934.5,1934.4,31.56065476]
[1617282445447,0.06972011,1934.5,1934.4,37.06065476]
[1617282445647,0.06972011,1934.5,1934.4,38.02174271]
[1617282446148,0.77972011,1934.9,1934.4,38.02174271]
[1617282446350,0.77972011,1934.9,1934.4,48.44874758]
[1617282446581,0.77972011,1934.9,1934.8,27.14]
[1617282446781,0.77972011,1934.9,1934.8,38.57243576]
[1617282446975,0.77972011,1934.9,1934.8,47.16025594]
[1617282447271,0.77972011,1934.9,1934.8,55.87345389]
[1617282447582,0.80703075,1935.4,1934.9,23.4]
[1617282447781,7.75195,1935.8,1934.9,23.4]
[1617282447782,1.48520506,1935.8,1935.3,0.39]
[1617282447973,0.14,1935.6,1935.3,0.39]
[1617282448199,1.0,1935.9,1935.5,13.8]
[1617282448379,1.0,1935.9,1935.5,13.4]
[1617282449107,1.0,1935.9,1935.7,0.39]
[1617282449312,1.0,1935.9,1935.7,5.01]
[1617282449509,1.0,1935.9,1935.6,0.39]
[1617282449810,3.87561,1936.0,1935.7,5.01]
[1617282450007,3.87561,1936.0,1935.6,3.25]
[1617282450507,3.93491525,1936.0,1935.6,2.86]
[1617282451508,0.38,1935.8,1935.1,1.22441041]
[1617282451729,9.2556,1935.8,1935.1,12.72966953]
[1617282451928,9.2556,1935.8,1935.1,1.22441041]
[1617282452130,9.2556,1935.8,1935.1,8.28070317]
[1617282452325,0.39,1935.6,1935.1,8.56770317]
[1617282452526,8.8756,1935.8,1935.1,5.87141041]
[1617282452726,8.8756,1935.8,1935.2,17.79]
[1617282452727,8.2656,1935.8,1935.2,17.79]
[1617282452931,8.2656,1935.8,1935.7,0.10652753]
[1617282453533,8.2656,1935.8,1935.7,0.49652753]
[1617282453840,8.2656,1935.8,1935.7,0.48652753]
[1617282454772,8.2656,1935.8,1935.7,11.55652753]
[1617282455479,8.2656,1935.8,1935.7,12.78093794]
[1617282455669,8.2656,1935.8,1935.7,16.24093794]
[1617282455869,8.2656,1935.8,1935.7,16.64093794]
[1617282456270,8.2656,1935.8,1935.7,5.19093794]
[1617282456470,8.2656,1935.8,1935.7,3.96652753]
[1617282456673,8.2656,1935.8,1935.7,3.56652753]
[1617282456873,0.05933273,1935.9,1935.7,3.56652753]
[1617282457575,0.24453273,1936.4,1935.7,3.56652753]
[1617282457875,0.38453273,1936.4,1935.6,10.0]
[1617282458177,15.48464,1936.3,1936.2,0.15495368]
[1617282458375,13.1,1936.2,1935.5,2.66211498]
[1617282458674,13.1,1936.2,1935.6,0.4]
[1617282458675,19.0841,1936.2,1935.6,0.4]
[1617282459278,5.9841,1936.2,1935.6,0.4]
[1617282459702,7.75055,1936.2,1935.9,0.41]
[1617282460004,7.75055,1936.2,1935.7,4.24211498]
[1617282460402,7.75055,1936.2,1935.7,3.04211498]
[1617282460603,7.75055,1936.2,1935.7,5.78211498]
[1617282460807,7.75055,1936.2,1935.7,6.12]
[1617282461111,7.75055,1936.2,1935.8,0.4]
[1617282461303,7.74983,1936.4,1935.8,0.4]
[1617282461605,7.74983,1936.4,1935.8,0.68]
[1617282461806,0.24425683,1936.6,1936.0,0.39]
[1617282462006,0.24425683,1936.6,1936.0,6.04292738]
[1617282462229,0.14,1936.7,1936.0,6.04292738]
[1617282462431,8.27871,1936.7,1936.0,5.41859487]
[1617282462640,7.27871,1936.7,1936.0,5.41859487]
[1617282462832,7.27871,1936.7,1936.2,2.3]
[1617282463030,7.27871,1936.7,1936.6,0.17838494]
[1617282464332,7.67871,1936.7,1936.6,0.17838494]
[1617282464539,29.24405721,1936.7,1936.6,0.17838494]
[1617282465455,17.89405721,1936.7,1936.6,0.17838494]
[1617282465648,16.37871,1936.7,1936.6,0.17838494]
[1617282465854,16.36838049,1936.7,1936.6,0.17838494]
[1617282466149,6.11838049,1936.7,1936.6,0.17838494]
[1617282467062,6.11838049,1936.7,1936.2,2.3]
[1617282467063,15.35,1936.6,1936.2,2.3]
[1617282467779,14.35,1936.6,1936.2,2.3]
[1617282468175,8.47616894,1936.7,1936.2,2.3]
[1617282468176,7.75106,1936.4,1936.2,2.3]
[1617282471126,29.58085256,1936.3,1936.2,2.3]
[1617282471322,38.53285256,1936.3,1936.2,2.3]
[1617282471725,5.01,1936.1,1935.4,1.0]
[1617282471928,0.09406894,1936.0,1935.5,0.38]
[1617282472124,7.98518894,1936.1,1935.5,0.38]
[1617282472324,7.89112,1936.1,1935.4,3.63148034]
[1617282472523,7.75112,1936.1,1935.5,2.63148034]
[1617282472827,7.75112,1936.1,1935.4,4.02148034]
[1617282472828,6.89112,1936.1,1935.4,4.02148034]
[1617282473027,6.89112,1936.1,1936.0,0.10734927]
[1617282473226,10.51112,1936.1,1936.0,0.10734927]
[1617282473425,20.16112,1936.1,1936.0,0.10734927]
[1617282474125,30.74605919,1936.1,1936.0,0.10734927]
[1617282474426,28.3,1936.0,1935.4,1.0]
[1617282474625,3.77406894,1935.9,1935.4,1.0]
[1617282474826,14.85512224,1935.9,1935.4,1.0]
[1617282475025,3.0169343,1935.8,1935.4,1.0]
[1617282475456,2.89406894,1935.7,1935.4,1.0]
[1617282475675,2.6269343,1935.6,1935.4,1.0]
[1617282476455,5.01,1935.5,1935.4,1.0]
[1617282476758,11.4461,1935.5,1935.4,1.0]
[1617282477156,19.4461,1935.5,1935.4,1.0]
[1617282477357,19.4461,1935.5,1935.4,0.9]
[1617282478084,19.9855616,1935.5,1935.4,0.9]
[1617282478683,7.6369343,1935.4,1934.9,0.11407415]
[1617282478885,0.38,1935.2,1934.0,1.0]
[1617282479088,0.26,1934.6,1934.1,0.95]
[1617282479286,6.32286894,1934.6,1934.1,0.95]
[1617282479485,7.76003,1934.4,1934.1,0.95]
[1617282479683,2.84,1934.3,1934.1,0.919998]
[1617282480705,18.75872,1934.2,1934.1,0.919998]
[1617282480907,26.91022,1934.2,1934.1,0.919998]
[1617282481207,37.49515919,1934.2,1934.1,0.919998]
[1617282481404,38.72975919,1934.2,1934.1,0.919998]
[1617282481606,35.72975919,1934.2,1934.1,0.919998]
[1617282481907,25.14482,1934.2,1934.1,0.919998]
[1617282482210,25.14482,1934.2,1934.1,0.619998]
[1617282482804,17.14482,1934.2,1934.1,0.619998]
[1617282483008,27.72975919,1934.2,1934.1,0.619998]
[1617282484325,17.14482,1934.2,1934.1,0.619998]
[1617282484625,7.75872,1934.2,1934.1,0.619998]
[1617282484826,10.98061497,1934.5,1934.1,0.619998]
[1617282485325,0.26,1934.6,1934.2,0.39]
[1617282485869,0.26,1934.6,1934.1,0.619998]
[1617282485870,0.09406894,1934.5,1934.1,0.619998]
[1617282486268,0.26,1934.6,1934.1,0.619998]
[1617282486472,0.09406894,1934.5,1934.1,0.619998]
[1617282486669,8.01506894,1934.5,1934.1,0.619998]
[1617282486871,7.921,1934.5,1934.1,0.619998]
[1617282487071,8.69,1934.3,1934.1,0.619998]
[1617282487270,19.06,1934.2,1934.1,0.619998]
[1617282487476,14.05,1934.2,1934.1,0.619998]
[1617282487771,4.5704,1934.3,1934.1,0.619998]
[1617282487977,4.5704,1934.3,1934.1,0.569998]
[1617282488376,3.68,1934.3,1934.1,0.569998]
[1617282488579,7.75971,1934.2,1934.1,0.569998]
[1617282488784,3.68,1934.3,1934.1,0.569998]
[1617282489275,0.09406894,1934.4,1934.1,0.569998]
[1617282489777,7.85253894,1934.4,1934.1,0.909998]
[1617282489977,7.75847,1934.4,1934.1,0.909998]
[1617282490376,2.72,1934.3,1934.1,0.909998]
[1617282490577,7.75847,1934.4,1934.1,0.909998]